bitfinex-derivatives/quotes_BTCF0:USTF0_20210404
["timestamp","ask_amount","ask_price","bid_price","bid_amount"]
[1617517677283,1.76330198,57269.0,57268.0,0.45007689]
[1617517681586,2.32885993,57269.0,57268.0,0.45007689]
[1617517681786,3.82885993,57269.0,57268.0,0.45007689]
[1617517682186,0.2,57268.0,57243.0,0.4686]
[1617517682387,0.50493987,57257.0,57243.0,0.4686]
[1617517682588,1.5,57256.0,57247.0,0.10725655]
[1617517682788,0.70467194,57255.0,57243.0,0.4686]
[1617517682988,3.738,57244.0,57243.0,0.4686]
[1617517683188,4.85336,57244.0,57243.0,0.4686]
[1617517683387,4.85336,57244.0,57213.0,3.177]
[1617517684593,4.85336,57244.0,57238.0,0.10725655]
[1617517684993,4.85336,57244.0,57213.0,3.177]
[1617517685594,1.0,57235.0,57213.0,3.177]
[1617517686494,1.0,57235.0,57231.0,0.10725655]
[1617517688497,0.10725655,57232.0,57231.0,0.10725655]
[1617517691002,0.22439655,57232.0,57231.0,0.10725655]
[1617517693404,0.21309655,57232.0,57231.0,0.10725655]
[1617517695308,0.09595655,57232.0,57231.0,0.10725655]
[1617517695908,1.0,57250.0,57231.0,0.10725655]
[1617517696109,3.8711,57254.0,57233.0,2.5708]
[1617517696509,3.8711,57254.0,57246.0,0.10725655]
[1617517696709,1.0,57251.0,57246.0,0.10725655]
[1617517697512,1.13100471,57253.0,57246.0,0.10725655]
[1617517697911,0.13100471,57253.0,57246.0,0.10725655]
[1617517698613,0.10725655,57247.0,57246.0,0.10725655]
[1617517707820,0.08105655,57247.0,57246.0,0.10725655]
[1617517712525,0.08105655,57247.0,57246.0,0.26655655]
[1617517712728,0.08105655,57247.0,57246.0,3.88095655]
[1617517713126,0.50408603,57261.0,57246.0,3.88095655]
[1617517713330,0.50435061,57264.0,57246.0,3.88095655]
[1617517713728,0.50436043,57265.0,57246.0,3.88095655]
[1617517714530,3.87729057,57266.0,57246.0,3.88095655]
[1617517714732,3.87729057,57266.0,57264.0,0.10725655]
[1617517716232,3.3729,57266.0,57264.0,0.10725655]
[1617517716431,0.50439302,57267.0,57264.0,0.10725655]
[1617517716633,0.10725655,57265.0,57264.0,0.10725655]
[1617517721241,0.61383908,57265.0,57264.0,0.10725655]
[1617517727150,1.61383908,57265.0,57264.0,0.10725655]
[1617517727351,1.66543908,57265.0,57264.0,0.10725655]
[1617517728151,1.61383908,57265.0,57264.0,0.10725655]
[1617517729654,0.61383908,57265.0,57264.0,0.10725655]
[1617517729855,1.61383908,57265.0,57264.0,0.10725655]
[1617517730053,0.61383908,57265.0,57264.0,0.10725655]
[1617517730955,1.61383908,57265.0,57264.0,0.10725655]
[1617517731356,0.61383908,57265.0,57264.0,0.10725655]
[1617517732557,1.61383908,57265.0,57264.0,0.10725655]
[1617517736164,0.61383908,57265.0,57264.0,0.10725655]
[1617517741174,0.10725655,57265.0,57264.0,0.10725655]
[1617517742373,0.10725655,57265.0,57264.0,3.80625655]
[1617517743174,0.50651524,57271.0,57264.0,3.80625655]
[1617517743375,0.50651524,57271.0,57264.0,1.10725655]
[1617517743575,0.5068864,57276.0,57270.0,3.3183]
[1617517743975,0.50704212,57278.0,57270.0,3.3183]
[1617517744376,0.50730974,57281.0,57270.0,3.3183]
[1617517744776,0.50750438,57279.0,57270.0,3.3183]
[1617517744975,0.50750438,57279.0,57278.0,0.23550655]
[1617517745975,0.50750438,57279.0,57278.0,3.11060655]
[1617517747191,0.67609984,57287.0,57278.0,3.11060655]
[1617517747192,0.50909772,57280.0,57278.0,3.11060655]
[1617517748284,0.50913829,57281.0,57278.0,0.23550655]
[1617517748485,0.50913829,57281.0,57279.0,3.2572]
[1617517748686,0.50918212,57280.0,57279.0,3.2572]
[1617517749487,0.50790817,57285.0,57279.0,3.2572]
[1617517750291,0.64095792,57286.0,57279.0,3.2572]
[1617517750893,0.64095792,57286.0,57285.0,0.10725655]
[1617517756099,0.13304486,57286.0,57285.0,0.10725655]
[1617517756800,0.61546863,57287.0,57285.0,0.10725655]
[1617517757500,0.10725655,57287.0,57285.0,0.10725655]
[1617517759702,0.61563257,57287.0,57285.0,0.10725655]
[1617517760303,0.10725655,57287.0,57285.0,0.10725655]
[1617517768414,0.05215655,57287.0,57285.0,0.10725655]
[1617517768616,0.50824624,57292.0,57285.0,0.10725655]
[1617517768815,0.50824624,57292.0,57290.0,2.737]
[1617517769016,0.50824624,57292.0,57291.0,0.10725655]
[1617517771220,0.61516893,57294.0,57291.0,0.10725655]
[1617517771521,0.50791245,57293.0,57291.0,0.10725655]
[1617517772021,0.61516668,57294.0,57291.0,0.10725655]
[1617517773222,0.10725655,57294.0,57291.0,0.10725655]
[1617517789948,0.61578368,57294.0,57291.0,0.10725655]
[1617517790347,0.50852873,57293.0,57291.0,0.10725655]
[1617517791149,0.61577713,57294.0,57291.0,0.10725655]
[1617517792248,0.61577713,57294.0,57293.0,3.0418]
[1617517792448,0.10725655,57294.0,57293.0,3.0418]
[1617517792849,0.61577619,57294.0,57293.0,3.0418]
[1617517793651,0.61577619,57294.0,57293.0,3.0936]
[1617517794455,0.10725655,57294.0,57293.0,0.0518]
[1617517794655,3.71035655,57294.0,57293.0,0.0518]
[1617517795255,3.84311577,57294.0,57291.0,0.10725655]
[1617517795657,0.13276017,57293.0,57291.0,0.10725655]
[1617517799760,0.50862621,57296.0,57291.0,0.10725655]
[1617517799959,0.50862621,57296.0,57293.0,3.2297]
[1617517800961,0.51012528,57294.0,57293.0,3.2297]
[1617517803062,0.51006216,57297.0,57293.0,3.2297]
[1617517803463,0.51006483,57298.0,57293.0,3.2297]
[1617517804063,0.51006633,57297.0,57293.0,3.2297]
[1617517804462,0.50950146,57299.0,57293.0,3.2297]
[1617517805163,0.50950167,57300.0,57298.0,0.10725655]
[1617517807365,0.57063029,57308.0,57298.0,0.10725655]
[1617517807566,0.50950273,57300.0,57298.0,0.10725655]
[1617517808971,0.50949976,57301.0,57298.0,0.10725655]
[1617517809573,0.50970367,57300.0,57298.0,0.10725655]
[1617517810474,0.50970515,57299.0,57298.0,0.10725655]
[1617517811674,0.50970136,57300.0,57298.0,0.10725655]
[1617517814179,0.50970187,57301.0,57298.0,0.10725655]
[1617517814979,0.50969634,57300.0,57298.0,0.10725655]
[1617517815478,0.50969831,57301.0,57298.0,0.10725655]
[1617517815881,0.50942156,57302.0,57298.0,0.10725655]
[1617517816682,0.50942407,57303.0,57298.0,0.10725655]
[1617517818884,0.50942407,57303.0,57302.0,3.3885]
[1617517819083,0.10725655,57311.0,57302.0,3.3885]
[1617517819084,0.50939401,57305.0,57302.0,3.49509]
[1617517819283,0.50939401,57305.0,57304.0,0.10725655]
[1617517819483,0.49649401,57305.0,57304.0,0.10725655]
[1617517819684,0.57050401,57316.0,57304.0,0.10725655]
[1617517820084,0.57078376,57317.0,57304.0,0.10725655]
[1617517820286,0.57078376,57317.0,57304.0,0.15885655]
[1617517820484,0.57077851,57318.0,57304.0,0.15885655]
[1617517821287,0.57077851,57318.0,57317.0,0.10725655]
[1617517821491,0.57073934,57322.0,57317.0,0.22572655]
[1617517821889,0.57073813,57321.0,57317.0,0.22572655]
[1617517822289,0.57072375,57324.0,57317.0,0.22572655]
[1617517822689,0.5707235,57325.0,57317.0,0.22572655]
[1617517823289,0.245,57341.0,57317.0,0.22572655]
[1617517823290,0.57071582,57324.0,57317.0,0.11847]
[1617517825397,0.57068615,57325.0,57323.0,0.10725655]
[1617517825797,0.57068454,57326.0,57323.0,0.10725655]
[1617517826198,0.57068423,57325.0,57323.0,0.10725655]
[1617517826620,0.67639717,57331.0,57324.0,3.1847]
[1617517826998,0.56914062,57331.0,57324.0,3.1847]
[1617517827199,0.56910737,57335.0,57324.0,3.1847]
[1617517827398,0.56910737,57335.0,57334.0,0.22340655]
[1617517827607,0.245,57341.0,57334.0,0.22340655]
[1617517829401,0.245,57341.0,57340.0,0.10725655]
[1617517832302,3.9222,57341.0,57340.0,0.10725655]
[1617517832703,4.02825934,57341.0,57340.0,0.10725655]
[1617517833401,4.13551589,57341.0,57340.0,0.10725655]
[1617517834403,0.45831589,57341.0,57340.0,0.10725655]
[1617517835001,0.86029715,57341.0,57340.0,0.10725655]
[1617517838007,0.245,57341.0,57340.0,0.10725655]
[1617517838205,0.245,57341.0,57340.0,0.21690655]
[1617517839405,0.245,57341.0,57340.0,0.10725655]
[1617517840005,0.21,57341.0,57340.0,0.10725655]
[1617517840306,0.245,57341.0,57340.0,0.10725655]
[1617517841506,1.105,57341.0,57340.0,0.10725655]
[1617517841708,1.61166752,57341.0,57340.0,0.10725655]
[1617517842807,0.75166752,57341.0,57340.0,0.10725655]
[1617517843007,0.68166752,57341.0,57340.0,0.10725655]
[1617517843408,0.75166752,57341.0,57340.0,0.10725655]
[1617517843809,0.245,57341.0,57340.0,0.10725655]
[1617517853017,1.245,57341.0,57340.0,0.10725655]
[1617517853518,1.35225655,57341.0,57340.0,0.10725655]
[1617517858723,0.35225655,57341.0,57340.0,0.10725655]
[1617517858923,1.35225655,57341.0,57340.0,0.10725655]
[1617517860123,1.35225655,57341.0,57336.0,3.2433]
[1617517860323,1.35225655,57341.0,57319.0,0.4517]
[1617517860523,1.0,57337.0,57319.0,0.4517]
[1617517860727,3.33638,57328.0,57319.0,0.4517]
[1617517860924,1.0,57322.0,57319.0,0.4517]
[1617517861724,1.10725655,57322.0,57321.0,0.10725655]
[1617517862625,1.0,57322.0,57321.0,0.10725655]
[1617517862827,1.0,57325.0,57321.0,0.10725655]
[1617517863229,3.33638,57328.0,57321.0,0.10725655]
[1617517863628,3.44363655,57328.0,57327.0,0.10725655]
[1617517867831,0.21753655,57328.0,57327.0,0.10725655]
[1617517868732,0.21753655,57328.0,57327.0,3.74885655]
[1617517870634,0.10725655,57328.0,57327.0,3.74885655]
[1617517872637,0.08965655,57328.0,57327.0,3.74885655]
[1617517873437,1.0,57336.0,57327.0,3.74885655]
[1617517873639,1.0,57336.0,57335.0,0.10725655]
[1617517875838,1.5092549,57336.0,57335.0,0.10725655]
[1617517876438,4.2738549,57336.0,57335.0,0.10725655]
[1617517876839,5.88049761,57336.0,57319.0,0.4517]
[1617517877239,0.50925794,57329.0,57319.0,0.4517]
[1617517877438,0.66581794,57329.0,57319.0,0.4517]
[1617517877639,0.5092745,57328.0,57319.0,0.4517]
[1617517877839,0.5092745,57328.0,57323.0,0.10725655]
[1617517878639,0.15656,57329.0,57323.0,0.10725655]
[1617517878640,1.0,57325.0,57323.0,3.54655655]
[1617517878841,0.50927095,57329.0,57323.0,3.54655655]
[1617517879440,0.5092649,57330.0,57323.0,3.54655655]
[1617517879840,0.50925878,57331.0,57329.0,0.10725655]
[1617517880040,0.50925878,57331.0,57329.0,0.26251655]
[1617517880241,0.50925477,57332.0,57329.0,0.26251655]
[1617517881742,0.50925477,57332.0,57329.0,0.10725655]
[1617517884047,0.50944682,57331.0,57329.0,0.10725655]
[1617517885448,0.50944357,57332.0,57329.0,0.10725655]
[1617517885649,1.0,57330.0,57329.0,0.10725655]
[1617517885849,1.77362153,57330.0,57329.0,0.10725655]
[1617517887249,0.77362153,57330.0,57329.0,0.10725655]
[1617517887651,0.61672153,57330.0,57329.0,0.10725655]
[1617517890953,1.61672153,57330.0,57329.0,0.10725655]
[1617517891354,2.18854789,57330.0,57329.0,0.10725655]
[1617517891953,2.18854789,57330.0,57323.0,3.4393]
[1617517892154,2.18854789,57330.0,57319.0,0.4517]
[1617517892353,2.97291,57324.0,57319.0,0.4517]
[1617517892554,0.51058285,57320.0,57319.0,0.4517]
[1617517893855,0.51058285,57320.0,57319.0,0.55895655]
[1617517894358,0.10725655,57322.0,57319.0,0.55895655]
[1617517894757,0.61782389,57322.0,57319.0,0.55895655]
[1617517895356,0.10725655,57322.0,57319.0,0.55895655]
[1617517895956,0.10759736,57323.0,57319.0,0.55895655]
[1617517902165,1.10759736,57323.0,57319.0,0.55895655]
[1617517902566,1.0,57321.0,57319.0,0.55895655]
[1617517902966,1.0,57320.0,57319.0,0.55895655]
[1617517905069,3.5982,57320.0,57319.0,0.55895655]
[1617517905267,4.70873,57320.0,57319.0,0.55895655]
[1617517905469,5.21909343,57320.0,57319.0,0.55895655]
[1617517905871,5.43296612,57320.0,57319.0,0.55895655]
[1617517907672,4.92260269,57320.0,57319.0,0.55895655]
[1617517908475,5.43239314,57320.0,57319.0,0.55895655]
[1617517909273,1.83419314,57320.0,57319.0,0.55895655]
[1617517909673,1.727577,57320.0,57319.0,0.55895655]
[1617517919986,0.727577,57320.0,57319.0,0.55895655]
[1617517920189,1.727577,57320.0,57319.0,0.55895655]
[1617517920788,1.21778655,57320.0,57319.0,0.55895655]
[1617517920988,1.10725655,57320.0,57319.0,0.67118655]
[1617517921187,1.0,57320.0,57319.0,0.67118655]
[1617517921388,0.10632149,57320.0,57319.0,0.67118655]
[1617517921588,0.10632149,57320.0,57319.0,3.62298655]
[1617517921788,1.7,57337.0,57319.0,3.62298655]
[1617517921789,1.0,57324.0,57319.0,3.62298655]
[1617517922188,1.0,57325.0,57319.0,3.62298655]
[1617517923688,0.50955859,57328.0,57319.0,3.62298655]
[1617517923689,1.0,57327.0,57319.0,3.62298655]
[1617517923888,0.50955859,57328.0,57319.0,3.62298655]
[1617517924089,1.50955528,57329.0,57326.0,0.10725655]
[1617517925192,0.50955528,57329.0,57326.0,0.10725655]
[1617517926595,0.50952973,57332.0,57326.0,0.10725655]
[1617517926794,0.50952973,57332.0,57331.0,3.45192]
[1617517926996,0.5095237,57333.0,57331.0,3.45192]
[1617517927396,0.81565432,57341.0,57331.0,3.45192]
[1617517927397,0.50951575,57334.0,57331.0,3.45192]
[1617517927995,0.50951417,57336.0,57333.0,0.10725655]
[1617517928496,0.50951223,57338.0,57333.0,0.10725655]
[1617517928896,1.0,57336.0,57333.0,0.10725655]
[1617517929698,2.6096,57334.0,57333.0,0.10725655]
[1617517931901,0.245,57341.0,57333.0,0.10725655]
[1617517932102,0.245,57341.0,57333.0,0.25685655]
[1617517932103,2.9437,57339.0,57333.0,0.25685655]
[1617517932302,2.9437,57339.0,57333.0,0.1496]
[1617517933504,2.9437,57339.0,57332.0,2.5707]
[1617517934205,2.9437,57339.0,57338.0,0.10725655]
[1617517934405,2.9437,57339.0,57338.0,0.27011655]
[1617517935706,2.9437,57339.0,57338.0,0.10725655]
[1617517939207,2.9088,57339.0,57338.0,0.10725655]
[1617517940411,2.9088,57339.0,57338.0,0.15885655]
[1617517940612,2.9088,57339.0,57338.0,0.10725655]
[1617517941212,2.8737,57339.0,57338.0,0.10725655]
[1617517941912,0.245,57341.0,57338.0,0.10725655]
[1617517942112,0.2187,57341.0,57338.0,3.47205655]
[1617517942513,0.1929,57341.0,57338.0,3.47205655]
[1617517942713,0.1235,57341.0,57338.0,3.47205655]
[1617517942913,0.0624,57341.0,57338.0,3.47205655]
[1617517944819,0.0624,57341.0,57338.0,0.10725655]
[1617517945018,0.0624,57341.0,57340.0,2.6193]
[1617517949526,0.50786934,57366.0,57340.0,3.6193]
[1617517949727,0.50784241,57369.0,57340.0,3.6193]
[1617517949927,0.50784241,57369.0,57353.0,1.12876]
[1617517950127,1.0,57382.0,57353.0,0.12876]
[1617517950128,0.5687614,57380.0,57353.0,0.12876]
[1617517950327,0.10725655,57378.0,57353.0,0.12876]
[1617517951029,0.10725655,57378.0,57354.0,0.0522]
[1617517951230,1.0,57379.0,57353.0,0.12876]
[1617517951429,1.09192839,57379.0,57353.0,0.12876]
[1617517951628,1.0,57378.0,57353.0,0.12876]
[1617517951830,1.0,57377.0,57353.0,0.12876]
[1617517952231,1.0,57379.0,57376.0,0.10725655]
[1617517952431,1.10725655,57383.0,57376.0,0.10725655]
[1617517952630,1.10725655,57383.0,57382.0,3.0853]
[1617517952831,0.10725655,57383.0,57376.0,0.10725655]
[1617517953032,3.4705,57377.0,57376.0,0.10725655]
[1617517953232,3.6096,57377.0,57376.0,0.10725655]
[1617517953632,4.70152339,57377.0,57376.0,0.10725655]
[1617517954232,3.70152339,57377.0,57376.0,0.10725655]
[1617517954632,4.70152339,57377.0,57376.0,0.10725655]
[1617517956032,4.6096,57377.0,57376.0,0.10725655]
[1617517956234,4.71685655,57377.0,57376.0,0.10725655]
[1617517958134,3.71685655,57377.0,57376.0,0.10725655]
[1617517958334,4.71685655,57377.0,57376.0,0.10725655]
[1617517959136,3.71685655,57377.0,57376.0,0.10725655]
[1617517959335,4.71685655,57377.0,57376.0,0.10725655]
[1617517960637,6.21685655,57377.0,57376.0,0.10725655]
[1617517960837,5.21685655,57377.0,57376.0,0.10725655]
[1617517961039,6.21685655,57377.0,57376.0,0.10725655]
[1617517961238,6.21685655,57377.0,57350.0,2.8812]
[1617517961841,0.091925,57376.0,57350.0,2.8812]
[1617517962441,0.091925,57376.0,57372.0,0.10725655]
[1617517962843,0.091925,57376.0,57372.0,3.35385655]
[1617517963043,1.0,57373.0,57372.0,3.35385655]
[1617517963443,0.091925,57376.0,57372.0,3.35385655]
[1617517963643,0.09191964,57380.0,57372.0,3.35385655]
[1617517964245,1.10725655,57373.0,57372.0,3.35385655]
[1617517977767,1.0,57373.0,57372.0,3.35385655]
[1617517981974,1.12457,57373.0,57372.0,3.35385655]
[1617517982378,1.23182655,57373.0,57372.0,3.35385655]
[1617517983676,1.73904816,57373.0,57372.0,3.35385655]
[1617517984678,1.23182655,57373.0,57372.0,3.35385655]
[1617517985078,1.7390473,57373.0,57372.0,3.35385655]
[1617517995392,1.63179075,57373.0,57372.0,3.35385655]
[1617517997293,1.50722075,57373.0,57372.0,3.35385655]
[1617518001897,0.50722075,57373.0,57372.0,3.35385655]
[1617518012712,0.50722075,57373.0,57372.0,0.10725655]
[1617518017717,1.0,57384.0,57372.0,2.88325655]
[1617518017718,0.50993707,57374.0,57372.0,2.88325655]
[1617518018120,0.5099339,57373.0,57372.0,2.88325655]
[1617518019022,0.50993025,57374.0,57372.0,2.88325655]
[1617518020625,0.50945809,57375.0,57372.0,2.88325655]
[1617518021626,1.0,57382.0,57372.0,2.88325655]
[1617518021627,0.50945437,57376.0,57372.0,2.88325655]
[1617518022028,0.509451,57378.0,57372.0,2.88325655]
[1617518022527,0.50945142,57379.0,57372.0,2.88325655]
[1617518022928,0.50945142,57379.0,57378.0,0.24921655]
[1617518023731,0.50938705,57380.0,57378.0,0.24921655]
[1617518024530,0.50938026,57381.0,57378.0,0.24921655]
[1617518026135,0.50937424,57382.0,57378.0,0.24921655]
[1617518026536,0.50937922,57381.0,57378.0,0.24921655]
[1617518026937,0.50937979,57382.0,57378.0,0.24921655]
[1617518027339,0.50938094,57387.0,57378.0,0.24921655]
[1617518027737,1.50938094,57387.0,57378.0,0.24921655]
[1617518027936,1.50938094,57387.0,57386.0,2.6476]
[1617518028137,0.50938094,57387.0,57386.0,2.6476]
[1617518028540,0.50937383,57388.0,57386.0,2.6476]
[1617518028741,1.50937383,57388.0,57386.0,2.6476]
[1617518028944,0.50936645,57389.0,57387.0,0.10725655]
[1617518029340,0.50936806,57388.0,57387.0,0.10725655]
[1617518029739,1.50936806,57388.0,57387.0,0.10725655]
[1617518030138,0.50936806,57388.0,57387.0,0.10725655]
[1617518031343,0.50857468,57392.0,57387.0,0.10725655]
[1617518031947,1.50856811,57393.0,57387.0,0.10725655]
[1617518033145,1.0,57393.0,57387.0,0.10725655]
[1617518034948,1.50855119,57394.0,57387.0,0.10725655]
[1617518035148,0.50855119,57394.0,57387.0,0.10725655]
[1617518036349,0.50848576,57395.0,57387.0,0.10725655]
[1617518036852,1.50847429,57396.0,57387.0,0.10725655]
[1617518037050,1.50847429,57396.0,57395.0,0.21797655]
[1617518038250,1.0,57396.0,57395.0,0.21797655]
[1617518038450,1.0,57396.0,57395.0,2.75307655]
[1617518039453,0.50847152,57399.0,57395.0,2.75307655]
[1617518039669,0.50843667,57400.0,57395.0,2.75307655]
[1617518040252,0.10725655,57402.0,57395.0,2.75307655]
[1617518041053,0.10725655,57402.0,57401.0,0.10725655]
[1617518044758,1.0,57414.0,57401.0,0.10725655]
[1617518045158,1.10725655,57414.0,57413.0,0.10725655]
[1617518047061,0.10725655,57414.0,57413.0,0.10725655]
[1617518047461,1.10725655,57414.0,57413.0,0.10725655]
[1617518048061,2.60725655,57414.0,57384.0,0.4986]
[1617518048461,2.8525,57409.0,57384.0,0.4986]
[1617518048863,1.0,57395.0,57384.0,0.4986]
[1617518049063,0.12478,57395.0,57394.0,0.10725655]
[1617518050063,1.62478,57395.0,57394.0,0.10725655]
[1617518050463,2.62478,57395.0,57372.0,0.0918701]
[1617518050665,2.62478,57395.0,57386.0,0.4701]
[1617518051065,0.10725655,57387.0,57386.0,0.4701]
[1617518051664,1.10725655,57387.0,57386.0,4.0325]
[1617518054069,1.10725655,57387.0,57386.0,0.4701]
[1617518060277,1.10725655,57387.0,57386.0,3.7625]
[1617518061576,1.0,57387.0,57386.0,3.7625]
[1617518062076,1.0,57387.0,57386.0,3.86975655]
[1617518062077,1.10725655,57387.0,57386.0,3.86975655]
[1617518063877,1.10725655,57387.0,57386.0,0.57735655]
[1617518064076,5.63365655,57387.0,57386.0,0.57735655]
[1617518064277,5.63365655,57387.0,57386.0,0.10725655]
[1617518064476,5.63365655,57387.0,57354.0,3.5244]
[1617518064477,5.63365655,57387.0,57366.0,0.49355529]
[1617518065078,5.63365655,57387.0,57355.0,0.14292757]
[1617518065079,5.63365655,57387.0,57365.0,0.49364851]
[1617518065280,4.63365655,57387.0,57364.0,0.4937258]
[1617518065479,1.0,57367.0,57364.0,0.4937258]
[1617518065678,1.14359,57367.0,57364.0,0.4937258]
[1617518065879,1.0,57365.0,57364.0,0.4937258]
[1617518066078,3.7416,57365.0,57364.0,0.60098235]
[1617518066881,3.7416,57365.0,57364.0,0.10725655]
[1617518067782,2.7416,57365.0,57364.0,0.10725655]
[1617518068182,3.7416,57365.0,57364.0,0.10725655]
[1617518068582,2.7416,57365.0,57364.0,0.10725655]
[1617518069385,2.7416,57365.0,57364.0,0.60164889]
[1617518069585,1.0,57366.0,57364.0,0.60164889]
[1617518069784,1.0,57366.0,57365.0,3.2506]
[1617518070184,1.0,57366.0,57365.0,3.83694073]
[1617518071586,1.0,57366.0,57365.0,3.34248298]
[1617518071886,1.0,57366.0,57365.0,3.83696451]
[1617518072287,1.0,57366.0,57365.0,3.34248298]
[1617518072988,1.14359,57367.0,57365.0,3.34248298]
[1617518073689,1.14359,57367.0,57366.0,0.09188199]
[1617518076294,0.14359,57367.0,57366.0,0.09188199]
[1617518076493,1.0,57370.0,57366.0,0.09188199]
[1617518076692,1.0,57369.0,57366.0,0.09188199]
[1617518077293,2.5,57369.0,57366.0,0.09188199]
[1617518077494,1.0,57367.0,57366.0,0.09188199]
[1617518077694,1.63571,57367.0,57366.0,0.09188199]
[1617518077891,1.63571,57367.0,57339.0,0.86799904]
[1617518077892,1.13571,57367.0,57348.0,0.49419271]
[1617518078092,1.13571,57367.0,57354.0,0.10725655]
[1617518078492,1.0,57355.0,57354.0,0.10725655]
[1617518078694,1.13993,57355.0,57354.0,0.10725655]
[1617518079293,0.13993,57355.0,57354.0,0.10725655]
[1617518081194,1.13993,57355.0,57354.0,0.10725655]
[1617518085497,0.13993,57355.0,57354.0,0.10725655]
[1617518085697,1.0,57355.0,57354.0,0.10725655]
[1617518085897,1.16757,57355.0,57354.0,0.10725655]
[1617518086297,1.27482655,57355.0,57354.0,0.10725655]
[1617518091100,1.27482655,57355.0,57344.0,0.472]
[1617518091903,1.0,57345.0,57344.0,0.472]
[1617518092504,1.60725655,57345.0,57344.0,0.472]
[1617518092708,2.60725655,57345.0,57344.0,0.472]
[1617518094106,1.10725655,57345.0,57344.0,0.472]
[1617518096310,3.0447,57336.0,57335.0,0.10725655]
[1617518096513,3.27336655,57336.0,57335.0,0.10725655]
[1617518096711,4.27336655,57336.0,57335.0,0.10725655]
[1617518101720,4.47336655,57336.0,57335.0,0.10725655]
[1617518101925,4.47336655,57336.0,57312.0,0.9671]
[1617518102516,4.36611,57336.0,57319.0,0.10725655]
[1617518102717,3.36611,57336.0,57319.0,0.10725655]
[1617518103116,1.16384,57320.0,57319.0,0.10725655]
[1617518104617,1.27109655,57320.0,57319.0,0.10725655]
[1617518108828,4.26839655,57320.0,57319.0,0.10725655]
[1617518111832,5.96839655,57320.0,57319.0,0.10725655]
[1617518112031,4.96839655,57320.0,57312.0,0.4747]
[1617518112234,5.96839655,57320.0,57312.0,0.4747]
[1617518112634,0.10725655,57313.0,57312.0,0.4747]
[1617518113634,1.10725655,57313.0,57312.0,0.4747]
[1617518114935,2.60725655,57313.0,57305.0,0.10725655]
[1617518115135,3.1386,57306.0,57305.0,0.10725655]
[1617518115335,3.2867,57306.0,57305.0,0.10725655]
[1617518116538,4.7867,57306.0,57288.0,0.4991]
[1617518116736,5.89395655,57306.0,57288.0,0.4991]
[1617518116936,1.0,57289.0,57283.0,0.4739]
[1617518117139,1.15239,57289.0,57283.0,0.4739]
[1617518117338,1.0,57284.0,57283.0,0.4739]
[1617518117737,3.563,57284.0,57283.0,0.4739]
[1617518118138,3.563,57284.0,57283.0,0.5257]
[1617518118538,3.67025655,57284.0,57283.0,0.58115655]
[1617518126948,2.67025655,57284.0,57283.0,0.58115655]
[1617518127349,2.67025655,57284.0,57283.0,0.69866655]
[1617518128450,2.67025655,57284.0,57283.0,0.58115655]
[1617518129852,2.67025655,57284.0,57283.0,0.69904655]
[1617518131553,2.563,57284.0,57283.0,0.69904655]
[1617518131954,1.0,57294.0,57283.0,0.69904655]
[1617518132155,1.0,57295.0,57283.0,0.69904655]
[1617518132354,1.0,57297.0,57283.0,0.69904655]
[1617518132555,2.6362,57302.0,57283.0,0.69904655]
[1617518132556,1.0,57298.0,57283.0,0.69904655]
[1617518132757,1.0,57299.0,57283.0,0.69904655]
[1617518132956,0.10725655,57299.0,57298.0,0.10725655]
[1617518133155,0.10725655,57299.0,57298.0,0.22882655]
[1617518133356,1.10725655,57299.0,57298.0,0.22882655]
[1617518134758,1.10725655,57299.0,57298.0,0.12157]
[1617518134957,1.10725655,57299.0,57283.0,0.59179]
[1617518134958,1.10725655,57299.0,57291.0,0.10725655]
[1617518135360,1.0,57294.0,57291.0,0.10725655]
[1617518135759,1.0,57292.0,57291.0,0.10725655]
[1617518136560,0.27598655,57299.0,57291.0,0.10725655]
[1617518136960,4.54265655,57292.0,57291.0,0.10725655]
[1617518137159,4.54265655,57292.0,57283.0,0.4739]
[1617518137360,1.10725655,57292.0,57283.0,0.4739]
[1617518137560,4.4362,57284.0,57283.0,0.4739]
[1617518137760,4.59585,57284.0,57283.0,0.4739]
[1617518139063,4.70310655,57284.0,57283.0,0.58115655]
[1617518139265,3.70310655,57284.0,57283.0,0.58115655]
[1617518140963,4.70310655,57284.0,57283.0,0.58115655]
[1617518141565,4.70310655,57284.0,57283.0,0.4739]
[1617518142865,3.70310655,57284.0,57283.0,0.4739]
[1617518144168,4.70310655,57284.0,57283.0,0.4739]
[1617518146170,3.70310655,57284.0,57283.0,0.4739]
[1617518151177,4.54345655,57284.0,57283.0,0.4739]
[1617518153479,3.54345655,57284.0,57283.0,0.4739]
[1617518154079,0.10725655,57284.0,57283.0,0.4739]
[1617518164697,3.65335655,57284.0,57283.0,0.4739]
[1617518171507,3.65335655,57284.0,57283.0,0.97273453]
[1617518175512,0.51058647,57297.0,57283.0,0.97273453]
[1617518175713,0.51058647,57297.0,57283.0,5.44793453]
[1617518175913,0.51058814,57298.0,57283.0,1.97273453]
[1617518176112,0.51058814,57298.0,57297.0,3.474]
[1617518176313,0.5105118,57305.0,57297.0,3.58292]
[1617518176914,1.0,57316.0,57298.0,0.09200002]
[1617518176915,0.51049521,57309.0,57298.0,0.09200002]
[1617518177314,0.51049085,57312.0,57298.0,0.09200002]
[1617518177513,0.51049085,57312.0,57311.0,0.10725655]
[1617518177716,0.51049085,57312.0,57311.0,0.22732655]
[1617518179313,0.51057663,57313.0,57311.0,0.22732655]
[1617518179513,0.10725655,57312.0,57311.0,0.22732655]
[1617518179714,0.51057663,57313.0,57311.0,0.22732655]
[1617518184921,0.10725655,57316.0,57311.0,0.22732655]
[1617518191128,0.50892039,57324.0,57323.0,2.7121]
[1617518191329,0.40850546,57337.0,57323.0,2.7121]
[1617518191330,0.50889604,57326.0,57323.0,2.7121]
[1617518191529,0.50889604,57326.0,57325.0,0.10725655]
[1617518191728,0.10725655,57333.0,57325.0,0.10725655]
[1617518191729,0.50888423,57330.0,57325.0,0.10725655]
[1617518191928,0.50888423,57330.0,57329.0,2.7118]
[1617518192331,0.50886155,57332.0,57329.0,2.7118]
[1617518192730,0.50882473,57338.0,57329.0,2.7118]
[1617518193130,0.50881363,57340.0,57329.0,2.7118]
[1617518193530,0.50881363,57340.0,57339.0,0.10725655]
[1617518193731,0.50878902,57341.0,57339.0,0.25710655]
[1617518194131,0.50878611,57342.0,57339.0,0.25710655]
[1617518194732,3.1454,57340.0,57339.0,0.10725655]
[1617518195336,3.7461615,57340.0,57339.0,0.10725655]
[1617518195735,0.6007615,57340.0,57339.0,0.10725655]
[1617518195940,0.6007615,57340.0,57339.0,2.98015655]